Cogmind - Beta 16 @@@ ROGUE MODE // 2025.12.05 @ 10:51:37 Player: Muchitsuji Result: Self-destructed Performance ------------- Evolutions (3) 1500 Regions Visited (7) 1400 Robots Destroyed (27) 135 Value Destroyed (669) 669 Prototype IDs (7) 140 Alien Tech Used (0) 0 Bonus (570) 570 TOTAL SCORE: 4414 Bonus ------- Follower Combat Kills 70 Entered DSFs 500 Cogmind --------- Core Integrity 674/700 Matter 272/300 Energy 95/100 System Corruption 0% Temperature Cool (0) Movement Walking (120) Location -7/DSF Parts ------- > --- POWER (1) -------- (None) > --- PROPULSION (4) --- Flexi-carbon Leg Improved Hover Unit Improved Hover Unit > --- UTILITY (6) ------ Small Storage Unit Weight Redist. System Sensor Array Improved Signal Interpreter Melee Analysis Suite Hacking Suite > --- WEAPON (2) ------- Advanced Assault Cannon Katana > --- INVENTORY (8) ---- Cooled Ion Engine Angular Momentum Engine Microactuators Microactuators Minigun Advanced Assault Cannon Plasma Cutter Peak State ------------ > --- POWER ------------ Light Nuclear Core > --- PROPULSION ------- Flexi-carbon Leg Flexi-carbon Leg Improved Hover Unit Improved Hover Unit > --- UTILITY ---------- Small Storage Unit Weight Redist. System Sensor Array Improved Signal Interpreter Melee Analysis Suite Hacking Suite > --- WEAPON ----------- Advanced Assault Cannon Katana > --- INVENTORY -------- Cooled Ion Engine Angular Momentum Engine Microactuators Microactuators Minigun Advanced Assault Cannon Plasma Cutter [Rating: 39] Favorites ----------- Power Ion Engine Engine Ion Engine Power Core Light Nuclear Core Propulsion Improved Hover Unit Leg Carbon-fiber Leg Wheel Wheel Hover Unit Improved Hover Unit Flight Unit Flight Unit Utility Small Storage Unit Device Sensor Array Storage Small Storage Unit Processor Melee Analysis Suite Hackware Hacking Suite Protection Backup Plating I Weapon Katana Energy Gun Medium Laser Ballistic Gun Autogun Ballistic Cannon Advanced Assault Cannon Launcher Mini Grenade Launcher Special Weapon Plasma Cutter Slashing Weapon Katana Build | -11 -10 -10 -9 -9 -8 -7 -7 ------- Run | Yrd Mat Min Mat Min Mat Fac DSF Slots Evolved 6 | . . . 2 . 2 2 . Power . | . . . . . . . . Propulsion 2 | . . . 1 . 1 . . Utility 4 | . . . 1 . 1 2 . Weapon . | . . . . . . . . Parts Attached 43 | 6 2 . 15 . 15 2 3 Power 7 | 1 . . 2 . 4 . . Engine 4 | 1 . . 2 . 1 . . Core 3 | . . . . . 3 . . Reactor . | . . . . . . . . Propulsion 19 | 2 . . 9 . 6 . 2 Treads . | . . . . . . . . Leg 6 | . . . . . 4 . 2 Wheel 3 | 2 . . 1 . . . . Hover 7 | . . . 5 . 2 . . Flight 3 | . . . 3 . . . . Utility 7 | 1 1 . 2 . 1 2 . Device 3 | . 1 . 1 . . 1 . Storage 1 | 1 . . . . . . . Processor 2 | . . . . . 1 1 . Hackware 1 | . . . 1 . . . . Protection . | . . . . . . . . Artifact . | . . . . . . . . Weapon 10 | 2 1 . 2 . 4 . 1 Energy Gun 3 | 1 1 . . . 1 . . Energy Cannon . | . . . . . . . . Ballistic Gun 3 | 1 . . 2 . . . . Ballistic Cannon 1 | . . . . . . . 1 Launcher 1 | . . . . . 1 . . Special Weapon 1 | . . . . . 1 . . Impact Weapon . | . . . . . . . . Slashing Weapon 1 | . . . . . 1 . . Piercing Weapon . | . . . . . . . . Special Melee Weapon . | . . . . . . . . Unidentified Prototypes 3 | . . . . . 3 . . Parts Lost 4 | . . . 1 . 2 . 1 Power . | . . . . . . . . Propulsion 3 | . . . 1 . 2 . . Utility . | . . . . . . . . Weapon 1 | . . . . . . . 1 Highest Loss Streak 2 | . . . 1 . 2 . 1 To Critical Strikes . | . . . . . . . . Average Backups 7 | 1 5 8 7 8 7 4 5 Power . | . 1 1 1 1 1 1 1 Propulsion 3 | . 2 5 5 3 2 . . Utility 1 | . . . 1 2 2 1 1 Weapon . | . 1 1 . 1 . 1 1 Tool/Special . | . . . . . . . . Unused Backups 12 | . . 1 5 . 3 . 3 Power 1 | . . . . . . . 1 Propulsion 4 | . . . 3 . 1 . . Utility 5 | . . 1 1 . 2 . 1 Weapon 2 | . . . 1 . . . 1 Tool/Special . | . . . . . . . . Average Slot Usage (%) 94 | . 92 100 92 100 94 90 90 Engine 6 | . 14 14 11 11 . . . Core 3 | . . . . . 8 7 7 Leg 7 | . . . . . 19 . . Wheel 8 | . 28 28 10 . . . . Hover 12 | . . . 16 33 13 23 23 Device 11 | . 7 14 13 11 8 13 15 Storage 10 | . 14 14 11 11 9 7 7 Processor 4 | . . . . . 8 15 15 Hackware 5 | . . . 4 11 9 7 7 Energy Gun 6 | . 14 14 7 . 3 . . Ballistic Gun 8 | . 14 14 13 22 2 . . Launcher 1 | . . . . . 4 7 2 Slashing Weapon 3 | . . . . . 8 7 7 Peak Build Rating 39 | 6 7 7 18 18 28 30 39 Average Rating 17 | 4 6 7 12 18 25 29 32 On Entrance 13 | . 6 7 7 18 18 25 30 Avg Prop Armor Cover (%) . | . . . . . . . . Naked Turns . | . . . . . . . . Heaviest Build 19 | 13 15 15 19 19 19 14 19 Greatest Support 50 | 20 20 20 30 21 50 28 46 Greatest Overweight (x) 1 | . . . 1 . 1 . . Average Overweight (x) . | . . . . . . . . Largest Inventory Capacity 8 | 8 8 8 8 8 8 8 8 Average Capacity 7 | 7 8 8 8 8 8 8 8 Most Carried 8 | 4 8 8 8 8 8 5 8 Average Carried 7 | 1 5 7 7 8 7 4 5 Final Capacity 8 | 8 8 8 8 8 8 8 8 Final Carried 8 | 4 8 8 8 8 6 4 7 Class Distribution -------------------- 58% | Mutant 41% | Scavenger-Mutant Dominant Class ---------------- Mutant | -10/Materials Mutant | -10/Mines Mutant | -9/Materials Mutant | -9/Mines Scavenger-Mutant | -8/Materials Scavenger-Mutant | -7/Factory Scavenger-Mutant | -7/DSF Resources | -11 -10 -10 -9 -9 -8 -7 -7 ----------- Run | Yrd Mat Min Mat Min Mat Fac DSF Matter Collected 882 | 223 64 14 237 . 297 . 47 Remotely . | . . . . . . . . Salvage Created 854 | . 17 31 259 . 476 . 71 Parts 52 | . 2 4 25 . 19 . 2 Haulers Intercepted . | . . . . . . . . Recyclers Shooed . | . . . . . . . . Parts Field Recycled . | . . . . . . . . Retrieved Matter . | . . . . . . . . Parts Self-Destructed . | . . . . . . . . Prevented . | . . . . . . . . Parts Restored . | . . . . . . . . Kills | -11 -10 -10 -9 -9 -8 -7 -7 ------- Run | Yrd Mat Min Mat Min Mat Fac DSF Combat Hostiles Destroyed 21 | . 1 2 7 . 10 . 1 Melee 6 | . . . . . 5 . 1 Guns 11 | . 1 2 7 . 1 . . AOE 4 | . . . . . 4 . . Classes Destroyed 9 | . 1 . 4 . 3 . 1 Recycler 1 | . . . . . 1 . . Mechanic 1 | . . . 1 . . . . Operator 1 | . . . 1 . . . . Watcher 3 | . . . 1 . 2 . . Swarmer 12 | . 1 2 5 . 4 . . Grunt 4 | . . . . . 4 . . Sentry 3 | . . . 2 . 1 . . Specialist 1 | . . . . . . . 1 Hunter 1 | . . . . . 1 . . Best Kill Streak 6 | . 1 2 2 . 6 . 1 Combat Bots Only 4 | . 1 2 2 . 4 . 1 Max Kills in Single Turn 6 | . 1 1 1 . 6 . 1 Gunslinging . | . . . . . . . . Exploded 4 | . . . . . 4 . . Melee 1 | . . . . . 1 . 1 Uniques/NPCs Destroyed . | . . . . . . . . Combat | -11 -10 -10 -9 -9 -8 -7 -7 -------- Run | Yrd Mat Min Mat Min Mat Fac DSF Hostile Shots Fired 142 | . 7 7 62 . 54 . 12 Missed 45 | . 2 2 27 . 12 . 2 Hits 97 | . 5 5 35 . 42 . 10 Melee 3 | . . . . . . . 3 Projectile 94 | . 5 5 35 . 42 . 7 Critical Strikes 4 | . . . 1 . 1 . 2 Damage Taken 1278 | . 55 43 411 . 566 . 203 Core 155 | . 10 34 53 . 32 . 26 Absorbed by Shields . | . . . . . . . . Regen/Repaired (Parts) 17 | . . . . . 17 . . Core Remaining (%) 90 | 100 . 82 . 86 94 . . Volleys Fired 43 | . 4 3 27 . 9 . . Largest 2 | . 2 2 2 . 2 . . Hottest 73 | . 70 70 73 . 56 . . Shots Fired 81 | . 8 6 54 . 13 . . Gun 77 | . 8 6 54 . 9 . . Cannon . | . . . . . . . . Launcher 1 | . . . . . 1 . . Special 3 | . . . . . 3 . . Kinetic 52 | . 4 3 37 . 8 . . Thermal 28 | . 4 3 17 . 4 . . Explosive 1 | . . . . . 1 . . Electromagnetic . | . . . . . . . . Robot Hit Streak 11 | . 2 2 11 . 7 . . Robot Miss Streak 4 | . 4 1 2 . 2 . . Penetration Max . | . . . . . . . . Secondary Targets 3 | . . 1 1 . 1 . . Max Gunslinging Chain 1 | . . 1 1 . 1 . . Shots Hit Robots 65 | . 3 3 32 . 24 . 3 Core Hits 37 | . 1 2 14 . 19 . 1 Critical Kills . | . . . . . . . . Critical Parts Destroyed . | . . . . . . . . Critical Strikes 3 | . . . 1 . 1 . 1 Burn 1 | . . . 1 . . . . Sever 2 | . . . . . 1 . 1 Melee Attacks 31 | . . . . . 27 . 4 Impact . | . . . . . . . . Slashing 31 | . . . . . 27 . 4 Piercing . | . . . . . . . . Sneak Attacks . | . . . . . . . . Combat Hostiles . | . . . . . . . . Follow-up Attacks . | . . . . . . . . Damage Inflicted 1581 | . 67 49 429 . 933 . 103 Guns 592 | . 67 49 390 . 86 . . Cannons . | . . . . . . . . Explosions 295 | . . . . . 295 . . Melee 655 | . . . . . 552 . 103 Ramming 39 | . . . 39 . . . . Kinetic 428 | . 42 10 290 . 86 . . Thermal 164 | . 25 39 100 . . . . Explosive 295 | . . . . . 295 . . Electromagnetic . | . . . . . . . . Impact . | . . . . . . . . Slashing 655 | . . . . . 552 . 103 Piercing . | . . . . . . . . Highest Corruption . | . . . . . . . . Average Corruption . | . . . . . . . . Corruption Purged . | . . . . . . . . Corruption Blocked . | . . . . . . . . Overload Shots . | . . . . . . . . Overflow Damage 35 | . . . . . 35 . . Projectiles . | . . . . . . . . Explosions 35 | . . . . . 35 . . Melee . | . . . . . . . . Knockbacks . | . . . . . . . . Impact . | . . . . . . . . Kinetic . | . . . . . . . . Secondary . | . . . . . . . . Self-Inflicted Damage 19 | . . . 19 . . . . Shots . | . . . . . . . . Rammed 3 | . . . 3 . . . . Targets Rammed 3 | . . . 3 . . . . Kicked . | . . . . . . . . Crushed . | . . . . . . . . Highest Temperature 25 | . . . 25 . 14 . . Average Temperature 8 | . . . 9 . 5 . . Received Heat Transfer 291 | . 6 . 123 . 162 . . Siege Activations . | . . . . . . . . Martial Activations . | . . . . . . . . Shielding Activations . | . . . . . . . . Robots Disrupted . | . . . . . . . . Combat Hostiles . | . . . . . . . . Robots Corrupted . | . . . . . . . . Combat Hostiles . | . . . . . . . . Parts Fried . | . . . . . . . . Impact Corruptions . | . . . . . . . . Robots Melted . | . . . . . . . . Combat Hostiles . | . . . . . . . . Parts Melted . | . . . . . . . . Heat Transferred 555 | . 74 111 370 . . . . Parts Sabotaged . | . . . . . . . . Parts Stolen . | . . . . . . . . Parts Stripped . | . . . . . . . . Power Chain Reactions . | . . . . . . . . Alert | -11 -10 -10 -9 -9 -8 -7 -7 ------- Run | Yrd Mat Min Mat Min Mat Fac DSF Maximum Alert Level . | . . . . . . . . Low Security (%) 100 | 100 100 100 100 100 100 100 100 Level 1 . | . . . . . . . . Level 2 . | . . . . . . . . Level 3 . | . . . . . . . . Level 4 . | . . . . . . . . Level 5 . | . . . . . . . . High Security . | . . . . . . . . Max Security . | . . . . . . . . Peak Influence 170 | . 20 65 168 65 170 65 41 Initial 65 | . . 3 21 65 21 65 31 Average 59 | . 5 6 50 60 100 57 38 Influence Increases 875 | . 20 65 347 . 423 . 20 Destroy 0b10 Robot/C 520 | . 20 40 140 . 300 . 20 Destroy 0b10 Robot/NC 30 | . . . 15 . 15 . . Destroy Leader 126 | . . 10 42 . 74 . . Allied During Kill 8 | . . . . . 8 . . Successful Hack 28 | . . . 15 . 13 . . Destroy Structure 13 | . . . . . 13 . . Partial Spotted 15 | . . . 15 . . . . Lose Combat Pursuer 135 | . . 15 120 . . . . Influence Decreases 834 | . 10 20 234 113 332 101 24 Entered New Map 273 | . . 7 34 103 34 81 14 Time Decay 481 | . 10 13 190 10 238 20 . Lost Part 40 | . . . 10 . 20 . 10 Lost Ally 40 | . . . . . 40 . . Squads Dispatched 9 | . 3 . 1 . 4 . 1 Investigation 3 | . 2 . 1 . . . . Extermination . | . . . . . . . . Reinforcement 3 | . 1 . . . 1 . 1 Assault . | . . . . . . . . Garrison 3 | . . . . . 3 . . Intercept . | . . . . . . . . Searches Triggered . | . . . . . . . . Construction Impeded . | . . . . . . . . Haulers Reinforced . | . . . . . . . . Active Scanning Responses . | . . . . . . . . Cargo Convoy Interrupts . | . . . . . . . . Stealth | -11 -10 -10 -9 -9 -8 -7 -7 --------- Run | Yrd Mat Min Mat Min Mat Fac DSF Distress Signals 3 | . 2 . . . 1 . . Communications Jammed . | . . . . . . . . Distress Signals . | . . . . . . . . Times Spotted 52 | . 9 3 18 . 18 . 4 Peak Tracking Total 7 | . 5 3 7 . 6 . 3 Tactical Retreats 4 | . . 1 3 . . . . Traps | -11 -10 -10 -9 -9 -8 -7 -7 ------- Run | Yrd Mat Min Mat Min Mat Fac DSF Traps Triggered 1 | . . . 1 . . . . Indirectly . | . . . . . . . . Trap Hack Attempts . | . . . . . . . . Triggered . | . . . . . . . . Disarmed . | . . . . . . . . Reprogrammed 5 | . . . . . 5 . . Reused . | . . . . . . . . Traps Extracted . | . . . . . . . . Installed . | . . . . . . . . Triggered . | . . . . . . . . Machines | -11 -10 -10 -9 -9 -8 -7 -7 ---------- Run | Yrd Mat Min Mat Min Mat Fac DSF Machines Disabled . | . . . . . . . . Max in Single Turn . | . . . . . . . . Machines Repaired . | . . . . . . . . Machines Dismantled . | . . . . . . . . Machines Sabotaged . | . . . . . . . . Overloaded Fab Kills . | . . . . . . . . Hacking | -11 -10 -10 -9 -9 -8 -7 -7 --------- Run | Yrd Mat Min Mat Min Mat Fac DSF Machines Accessed 14 | . 1 . 6 . 6 1 . Terminals 8 | . 1 . 2 . 4 1 . Fabricators . | . . . . . . . . Repair Stations 3 | . . . 2 . 1 . . Recycling Units 2 | . . . 1 . 1 . . Scanalyzers 1 | . . . 1 . . . . Garrison Access . | . . . . . . . . Total Hacks 41 | . 4 . 23 . 13 1 . Successful 25 | . 1 . 12 . 11 1 . Failed 15 | . 3 . 10 . 2 . . Catastrophic 3 | . 1 . 1 . 1 . . Database Lockouts 1 | . . . 1 . . . . Manual . | . . . . . . . . Terminals 23 | . 4 . 9 . 9 1 . Fabricators . | . . . . . . . . Repair Stations 7 | . . . 5 . 2 . . Recycling Units 6 | . . . 4 . 2 . . Scanalyzers 5 | . . . 5 . . . . Garrison Access . | . . . . . . . . Terminal Hacks 14 | . 1 . 4 . 8 1 . Robot Analysis 1 | . . . . . 1 . . Prototype ID Bank 2 | . . . 1 . 1 . . Open DSF 1 | . . . . . . 1 . Emergency Access Points 1 | . 1 . . . . . . Locate Traps 2 | . . . 1 . 1 . . Reprogram Traps 1 | . . . . . 1 . . Maintenance Status 1 | . . . . . 1 . . Hauler Manifests 1 | . . . 1 . . . . Zone Layout 4 | . . . 1 . 3 . . Fabricator Hacks . | . . . . . . . . Repair Station Hacks 5 | . . . 3 . 2 . . Scan Component 3 | . . . 2 . 1 . . Repair 1 | . . . . . 1 . . Refit 1 | . . . 1 . . . . Recycling Unit Hacks 3 | . . . 2 . 1 . . Report Inventory 2 | . . . 1 . 1 . . Retrieve Components 1 | . . . 1 . . . . Scanalyzer 3 | . . . 3 . . . . Insert Component 1 | . . . 1 . . . . Analyze 1 | . . . 1 . . . . Retrieve Study 1 | . . . 1 . . . . Garrison Access Hacks . | . . . . . . . . Unauthorized Hacks . | . . . . . . . . Terminals . | . . . . . . . . Fabricators . | . . . . . . . . Repair Stations . | . . . . . . . . Recycling Units . | . . . . . . . . Scanalyzers . | . . . . . . . . Garrison Access . | . . . . . . . . Data Cores Recovered 1 | . . . 1 . . . . Used . | . . . . . . . . Hacking Detections 13 | . 1 . 6 . 6 . . Full Trace Events 1 | . . . 1 . . . . Feedback Events . | . . . . . . . . Feedback Blocked . | . . . . . . . . Robot Schematics Acquired . | . . . . . . . . Robots Built . | . . . . . . . . Authchips . | . . . . . . . . Time . | . . . . . . . . Total Robot Build Rating . | . . . . . . . . Part Schematics Acquired 1 | . . . 1 . . . . Parts Built . | . . . . . . . . Authchips . | . . . . . . . . Time . | . . . . . . . . Total Part Build Rating . | . . . . . . . . Part Studies Acquired 1 | . . . 1 . . . . Parts Repaired 1 | . . . . . 1 . . Time 26 | . . . . . 26 . . Parts Recycled . | . . . . . . . . Recycled Matter . | . . . . . . . . Retrieved Matter . | . . . . . . . . Retrieved Components 1 | . . . 1 . . . . Parts Scanalyzed 1 | . . . 1 . . . . Part Schematics Acquired 1 | . . . 1 . . . . Parts Damaged . | . . . . . . . . Bothacking | -11 -10 -10 -9 -9 -8 -7 -7 ------------ Run | Yrd Mat Min Mat Min Mat Fac DSF Used RIF Installer . | . . . . . . . . Robots Hacked . | . . . . . . . . Non-combat . | . . . . . . . . Combat . | . . . . . . . . Robot Hacks Applied . | . . . . . . . . Relay Couplers Released . | . . . . . . . . Fabnet Peak Effective % . | . . . . . . . . Robots Rewired . | . . . . . . . . Allies Hacked . | . . . . . . . . Hacks Repelled . | . . . . . . . . Allies | -11 -10 -10 -9 -9 -8 -7 -7 -------- Run | Yrd Mat Min Mat Min Mat Fac DSF Total Allies 2 | . . . . 2 . . . Largest Group 2 | . . . . 2 2 . . Highest-Rated Group 43 | . . . . 43 43 . . Highest-Rated Ally 31 | . . . . 31 31 . . Total Orders . | . . . . . . . . Ally Attacks 13 | . . . . . 13 . . Total Damage 126 | . . . . . 126 . . Kills 5 | . . . . . 5 . . Allies Corrupted . | . . . . . . . . Allies Melted . | . . . . . . . . Intel | -11 -10 -10 -9 -9 -8 -7 -7 ------- Run | Yrd Mat Min Mat Min Mat Fac DSF Active Infowar (turns) 893 | . . . 290 38 476 48 41 Sensors 893 | . . . 290 38 476 48 41 Robot Analysis Total 1 | . . . . . 1 . . Derelict Logs Recovered 1 | . . 1 . . . . . Drone Launches . | . . . . . . . . Drone Recoveries . | . . . . . . . . Exploration | -11 -10 -10 -9 -9 -8 -7 -7 ------------- Run | Yrd Mat Min Mat Min Mat Fac DSF Turns Passed 1328 | 44 92 166 397 38 502 48 41 Spaces Moved 1267 | 40 82 183 358 58 409 96 41 Core 2 | 2 . . . . . . . Treads . | . . . . . . . . Legs 186 | . . . . . 185 . 1 Wheels 445 | 38 82 183 142 . . . . Hover 626 | . . . 208 58 224 96 40 Flight 8 | . . . 8 . . . . Fastest Speed 34 | 50 80 80 34 52 45 48 48 Average Speed 71 | 78 80 80 62 52 82 48 49 Slowest Speed 190 | 80 80 80 116 52 190 48 120 Overloaded Moves . | . . . . . . . . Propulsion Burnouts . | . . . . . . . . Robots Hopped . | . . . . . . . . Potential Cave-ins . | . . . . . . . . Cave-ins Triggered . | . . . . . . . . Exploration Rate (%) 26 | 3 26 50 30 16 39 3 41 Regions Visited 7 Branch Regions 2 Pre-discovered Areas . | . . . . . . . . Known Exits Taken 1 | . . . . . . 1 . Unknown Exits Taken 6 | 1 1 1 1 1 1 . . Scrap Searched . | . . . . . . . . Spaces Dug 5 | . . . . . 5 . . Terrain Destroyed 14 | . . . . . 14 . . Melee 5 | . . . . . 5 . . Projectile . | . . . . . . . . AOE 9 | . . . . . 9 . . Terrain Rammed . | . . . . . . . . Walls Destroyed . | . . . . . . . . Machines Disabled . | . . . . . . . . Actions | -11 -10 -10 -9 -9 -8 -7 -7 --------- Run | Yrd Mat Min Mat Min Mat Fac DSF Total 1567 | 49 100 196 483 65 522 97 55 Wait 102 | . 6 9 45 8 34 . . Move 1260 | 39 81 182 357 57 408 95 41 Hop . | . . . . . . . . Pick Up 34 | 4 6 1 11 . 7 . 5 Fast Attach 24 | 6 . . 6 . 10 . 2 Attach 14 | . 1 . 5 . 5 2 1 Detach 6 | . . . 4 . 2 . . Swap 15 | . 1 . 10 . 4 . . Drop 35 | . 1 1 15 . 16 . 2 Fire 43 | . 4 3 27 . 9 . . Melee 31 | . . . . . 27 . 4 Ram 3 | . . . 3 . . . . Kick . | . . . . . . . . Crush . | . . . . . . . . Escape Stasis . | . . . . . . . . Rewire . | . . . . . . . . Trap . | . . . . . . . . Miscellaneous . | . . . . . . . . Route ------- -11/Scrapyard -10/Materials -10/Mines -9/Materials (discovered 2 exits: [*Min] / Sto) -9/Mines -8/Materials -7/Factory -7/DSF History --------- Turn | Location | Event 28 | -11/Scrapyard | Discovered new exit (range 14) 45 | -11/Scrapyard | Entered Materials 46 | -10/Materials | Met a group of wandering Federalists 89 | -10/Materials | Discovered new exit (range 16) 137 | -10/Materials | Entered Mines 238 | -10/Mines | Learned location of 1 exit from Materials 276 | -10/Mines | Discovered new exit (range 11) 303 | -10/Mines | Entered Materials 303 | -9/Materials | Evolved 2 slots: Propulsion x1, Utility x1 304 | -9/Materials | Identified exit to Storage 339 | -9/Materials | Central database locked down 342 | -9/Materials | Build established: Mutant 679 | -9/Materials | Discovered new exit (range 8) 700 | -9/Materials | Entered Mines 716 | -9/Mines | Discovered new exit (range 11) 724 | -9/Mines | Received a Rocket Launcher from a helpful Derelict 738 | -9/Mines | Entered Materials 738 | -8/Materials | Accompanied by 2 allies 738 | -8/Materials | Evolved 2 slots: Propulsion x1, Utility x1 743 | -8/Materials | Led the pair of lost Derelicts to an unsafe place 862 | -8/Materials | Garrison activated, responded to threat 1049 | -8/Materials | Repaired Sensor Array 1070 | -8/Materials | Build established: Scavenger-Mutant 1209 | -8/Materials | Discovered new exit (range 16) 1240 | -8/Materials | Entered Factory 1240 | -7/Factory | Evolved 2 slots: Utility x2 1257 | -7/Factory | Identified exit to DSF 1288 | -7/Factory | Entered DSF 1328 | -7/DSF | Additional patrols routed to DSF 1329 | -7/DSF | Self-destructed Last Messages --------------- 01295_ X-67 Chaingunner Flexi-carbon Leg severed. 01297_ Mni. Grenade Launcher destroyed. 01298_ X-67 Chaingunner destroyed. 01301_ Acquired Flexi-carbon Leg. 01302_ Acquired 45 matter. 01303_ Acquired Angular Momentum Engine. 01307_ Acquired Adv. Assault Cannon. 01310_ ALERT: Suspicious intruders detected, dispatching Cutter reinforcements to area. 01314_ Acquired Microactuators. 01316_ Dropped Imp. Heat Sink. 01316_ Acquired Microactuators. 01321_ Dropped Aerolev Unit. 01321_ Acquired Flexi-carbon Leg. 01323_ Acquired 2 matter. 01325_ Lgt. Nuclear Core severed. 01327_ Flexi-carbon Leg severed. 01328_ Hostiles detected in DSF, routing additional patrols. Map ----- +----------------------------------------------------+ | ???????????????????????????????????????????????? | | ???????????????????????????????????????????????? | | ???????????????????????????????????????????????? | | ???????????????????????????????????????????????? | | ???????????????????????????????????????????????? | | ???????????????????????????????????????????????? | | ???????????????????????????????????????????????? | | ???????????????????????????????????????????????? | | ???????????????????????????????????????????????? | | ???????????????????????????????????????????????? | | ???????????????????????????????????????????????? | | ???????????????????????????????????????????????? | | ?????????????????????? ????????????????????????? | | ????????????????????! ????????????????????????? | | ????????????????????! ????????????????????????? | | ??????????????###???# ????????????????????????? | | ??????????????#!!!?## ???????????? ?????????? | | ?????????????!#!!!##a ???????????# ????????? | | ?????????????? ??????????? ????????? | | ???????????????? ??????????? ????????? | | ?????????????????? ??????????? ????????? | | ???????????????????#a ???????????# ????????? | | ????????????????????# #??????????# ????????? | | ??????????????????### =##???????## ##???????? | | ??????????????????#!! Hcc#??????? [#???????? | | ??????????????????#!! ==@#???????? [????????? | | ??????????????????#!! ==#???????? [????????? | | ??????????????????### ;##??????### ##???????? | | ??????????????????#!! ! #??????#]] ]#???????? | | ??????????????????#!! !!#???????]] ]#???????? | | ??????????????????#!! !!########?# #????????? | | ??????????????????### ###]]]#]]###! ###??????? | | ??????????????????### ### ]#]]## % ""###????? | | ??????????????????# """""#???? | | ??????????????????# ""##"#???? | | ??????????????????#[[ !!#[[[# ##"""""#??????? | | ??????????????????#[[ !!#########"""""#??????? | | ??????????????????###;#####???????##"####??????? | | ????????????????????##?????????????#"#?????????? | | ???????????????????????????????????#""?????????? | | ????????????????????????????????????##?????????? | | ???????????????????????????????????????????????? | | ???????????????????????????????????????????????? | | ???????????????????????????????????????????????? | | ???????????????????????????????????????????????? | | | | | | | | | | | +----------------------------------------------------+ Best States ------------- Heat Dissipation 38 Energy Generation 14 Energy Capacity 265 Matter Stores 300 Matter Capacity 300 Sight Range 16 Robot Scan Range 14 Terrain Scan Density 10 Additional Mass Support 6 Armor Coverage 80 Evasion (%) 56 Melee Accuracy 5 Offensive Hacking 10 Item Schematics ----------------- Flight Unit | -9/Materials | Scanalyzed Robot Schematics ------------------ None Fabricated ------------ Nothing Repaired ---------- Sensor Array | 15% | -8/Materials Studied --------- Med. Laser | -9/Materials | Hacked Alien Tech Used ----------------- None Achievements -------------- Fitting Room Challenges ------------ None Game ------ Seed TripodProtonStripper Manual? 0 Play Time 00:44:43 Cumulative 41.8 hours Start 2025.12.04 @ 11:01:08 End 2025.12.05 @ 10:51:37 Sessions 3 Manual Loads 0 Difficulty Rogue Special Mode None Game No. 33 Rogue 32 Adventurer 1 Explorer 0 Win Type - Total 0 Types 0/0/0/0/0/0/0/0/0/0 Lore% 20 Gallery% 38 Achievement% 20 Wizard Run 0 Options --------- Layout 1 ASCII 0 Keyboard 0 Movement Numpad Keybinds 0 Fullscreen 2 Font 32/SmallcapsGlow Map View 50x35 Zoom Use 0% Tactical HUD 1 Map Filters NONE Filters NONE Steam 1 RUN: 4e8efa6a-fed8-4beb-b994-9d835789d72f